[Event "Titled Tuesday Blitz May 24 Early 2022"]
[White "Hambleton, Aman"]
[Black "Harris, Ian"]
[WhiteFideId "2606577"]
[BlackFideId "2020092"]
[WhiteElo "2552"]
[BlackElo "2435"]
[Result "1-0"]
[Round "01"]
[TimeControl "180+1"]
[Date "2022.05.25"]
[WhiteClock "0:00:05"]
[BlackClock "0:00:07"]

1. d4 {[%clk 0:02:56]}  d5 {[%clk 0:02:54]} 2. Bf4 {[%clk 0:02:45]}  Nf6 {[%clk 0:02:40]} 3. e3 {[%clk 0:02:43]}  c5 {[%clk 0:02:40]} 4. c3 {[%clk 0:02:40]}  Nc6 {[%clk 0:02:40]} 5. Nd2 {[%clk 0:02:38]}  Bf5 {[%clk 0:02:29]} 6. Qb3 {[%clk 0:02:35]}  Qb6 {[%clk 0:02:27]} 7. dxc5 {[%clk 0:02:32]}  Qxb3 {[%clk 0:02:22]} 8. axb3 {[%clk 0:02:33]}  e5 {[%clk 0:02:21]} 9. Bg3 {[%clk 0:02:34]}  Bxc5 {[%clk 0:02:18]} 10. b4 {[%clk 0:02:33]}  Bd6 {[%clk 0:02:18]} 11. Ngf3 {[%clk 0:02:32]}  Nh5 {[%clk 0:01:36]} 12. b5 {[%clk 0:01:53]}  Nxg3 {[%clk 0:01:33]} 13. hxg3 {[%clk 0:01:54]}  Ne7 {[%clk 0:01:24]} 14. Be2 {[%clk 0:01:47]}  O-O {[%clk 0:01:20]} 15. Ra4 {[%clk 0:01:44]}  f6 {[%clk 0:01:13]} 16. e4 {[%clk 0:01:33]}  Be6 {[%clk 0:00:56]} 17. exd5 {[%clk 0:01:23]}  Nxd5 {[%clk 0:00:54]} 18. Bd3 {[%clk 0:00:45]}  f5 {[%clk 0:00:44]} 19. Ng5 {[%clk 0:00:42]}  Nc7 {[%clk 0:00:15]} 20. Nc4 {[%clk 0:00:19]}  Rfd8 {[%clk 0:00:06]} 21. b6 {[%clk 0:00:15]}  axb6 {[%clk 0:00:02]} 22. Rxa8 {[%clk 0:00:12]}  Rxa8 {[%clk 0:00:03]} 23. Kd2 {[%clk 0:00:08]}  Bxc4 {[%clk 0:00:01]} 24. Bxc4+ {[%clk 0:00:08]}  Kf8 {[%clk 0:00:02]} 25. Rxh7 {[%clk 0:00:06]}  Ke7 {[%clk 0:00:02]} 26. Rxg7+ {[%clk 0:00:01]}  Kf6 {[%clk 0:00:03]} 27. Rd7 {[%clk 0:00:02]}  e4 {[%clk 0:00:03]} 28. Rxd6+ {[%clk 0:00:02]}  Kxg5 {[%clk 0:00:04]} 29. Rxb6 {[%clk 0:00:03]}  e3+ {[%clk 0:00:04]} 30. Kxe3 {[%clk 0:00:03]}  Re8+ {[%clk 0:00:04]} 31. Kd2 {[%clk 0:00:03]}  Rd8+ {[%clk 0:00:05]} 32. Kc2 {[%clk 0:00:04]}  Na8 {[%clk 0:00:05]} 33. Rxb7 {[%clk 0:00:04]}  Rc8 {[%clk 0:00:06]} 34. Bd5 {[%clk 0:00:05]}  Re8 {[%clk 0:00:06]} 35. Bf3 {[%clk 0:00:05]}  Re2+ {[%clk 0:00:07]} 36. Bxe2 {[%clk 0:00:05]}  Nb6 {[%clk 0:00:07]} 37. Rxb6 {[%clk 0:00:05]} 1-0


[Site "https://www.chess.com"]

[Event "Titled Tuesday Blitz May 24 Early 2022"]
[White "Hansch, Karsten"]
[Black "Dubov, Daniil"]
[WhiteFideId "24692239"]
[BlackFideId "24126055"]
[WhiteElo "2358"]
[BlackElo "2791"]
[Result "1/2-1/2"]
[Round "01"]
[TimeControl "180+1"]
[Date "2022.05.24"]
[WhiteClock "0:00:17"]
[BlackClock "0:00:05"]

1. e4 {[%clk 0:03:00]}  c5 {[%clk 0:02:59]} 2. Nf3 {[%clk 0:03:00]}  Nc6 {[%clk 0:02:58]} 3. Bc4 {[%clk 0:02:58]}  e6 {[%clk 0:02:57]} 4. O-O {[%clk 0:02:57]}  Nge7 {[%clk 0:02:56]} 5. c3 {[%clk 0:02:52]}  d5 {[%clk 0:02:53]} 6. exd5 {[%clk 0:02:52]}  exd5 {[%clk 0:02:53]} 7. Bb3 {[%clk 0:02:53]}  Ng6 {[%clk 0:02:48]} 8. d4 {[%clk 0:02:52]}  Be6 {[%clk 0:02:46]} 9. Re1 {[%clk 0:02:45]}  c4 {[%clk 0:02:46]} 10. Bxc4 {[%clk 0:02:38]}  dxc4 {[%clk 0:02:42]} 11. d5 {[%clk 0:02:39]}  Bc5 {[%clk 0:02:03]} 12. dxe6 {[%clk 0:02:27]}  O-O {[%clk 0:01:57]} 13. Qxd8 {[%clk 0:02:11]}  Raxd8 {[%clk 0:01:58]} 14. Nbd2 {[%clk 0:02:10]}  fxe6 {[%clk 0:01:55]} 15. Nxc4 {[%clk 0:02:07]}  Nh4 {[%clk 0:01:52]} 16. Be3 {[%clk 0:01:52]}  Nxf3+ {[%clk 0:01:40]} 17. gxf3 {[%clk 0:01:51]}  Bxe3 {[%clk 0:01:30]} 18. Rxe3 {[%clk 0:01:48]}  Rf4 {[%clk 0:01:30]} 19. b3 {[%clk 0:01:31]}  b5 {[%clk 0:00:47]} 20. Na3 {[%clk 0:01:11]}  b4 {[%clk 0:00:44]} 21. cxb4 {[%clk 0:01:11]}  Nd4 {[%clk 0:00:43]} 22. Kg2 {[%clk 0:01:03]}  Rdf8 {[%clk 0:00:36]} 23. Re4 {[%clk 0:00:58]}  Nxf3 {[%clk 0:00:24]} 24. Rxf4 {[%clk 0:00:58]}  Rxf4 {[%clk 0:00:25]} 25. Nc4 {[%clk 0:00:58]}  Nh4+ {[%clk 0:00:19]} 26. Kg3 {[%clk 0:00:58]}  g5 {[%clk 0:00:19]} 27. Re1 {[%clk 0:00:48]}  h5 {[%clk 0:00:18]} 28. Ne5 {[%clk 0:00:47]}  Nf5+ {[%clk 0:00:16]} 29. Kg2 {[%clk 0:00:47]}  Rxb4 {[%clk 0:00:16]} 30. Nc6 {[%clk 0:00:39]}  Rb6 {[%clk 0:00:16]} 31. Ne5 {[%clk 0:00:32]}  Rd6 {[%clk 0:00:14]} 32. Nc4 {[%clk 0:00:31]}  Nh4+ {[%clk 0:00:12]} 33. Kf1 {[%clk 0:00:28]}  Ra6 {[%clk 0:00:12]} 34. a4 {[%clk 0:00:28]}  Nf3 {[%clk 0:00:12]} 35. Rd1 {[%clk 0:00:20]}  Nxh2+ {[%clk 0:00:10]} 36. Kg2 {[%clk 0:00:21]}  Ng4 {[%clk 0:00:10]} 37. Rd8+ {[%clk 0:00:21]}  Kf7 {[%clk 0:00:10]} 38. Rc8 {[%clk 0:00:21]}  Nh6 {[%clk 0:00:06]} 39. a5 {[%clk 0:00:21]}  Nf5 {[%clk 0:00:05]} 40. b4 {[%clk 0:00:22]}  Nd6 {[%clk 0:00:03]} 41. Nxd6+ {[%clk 0:00:21]}  Rxd6 {[%clk 0:00:04]} 42. Rc7+ {[%clk 0:00:22]}  Kf6 {[%clk 0:00:05]} 43. Rxa7 {[%clk 0:00:23]}  g4 {[%clk 0:00:03]} 44. Rb7 {[%clk 0:00:23]}  h4 {[%clk 0:00:04]} 45. b5 {[%clk 0:00:23]}  Rd2 {[%clk 0:00:03]} 46. a6 {[%clk 0:00:23]}  g3 {[%clk 0:00:04]} 47. a7 {[%clk 0:00:23]}  Rxf2+ {[%clk 0:00:04]} 48. Kg1 {[%clk 0:00:23]}  Ra2 {[%clk 0:00:04]} 49. Rh7 {[%clk 0:00:16]}  Kg5 {[%clk 0:00:04]} 50. b6 {[%clk 0:00:15]}  Ra1+ {[%clk 0:00:03]} 51. Kg2 {[%clk 0:00:15]}  Ra2+ {[%clk 0:00:04]} 52. Kg1 {[%clk 0:00:16]}  Ra1+ {[%clk 0:00:04]} 53. Kg2 {[%clk 0:00:16]}  Ra2+ {[%clk 0:00:05]} 54. Kg1 {[%clk 0:00:17]} 1/2-1/2


[Site "https://www.chess.com"]

[Event "Titled Tuesday Blitz May 24 Early 2022"]
[White "Hartikainen, Jarmo"]
[Black "Bagrationi, Alexander"]
[WhiteFideId "503134"]
[BlackFideId "14104954"]
[WhiteElo "2124"]
[BlackElo "2502"]
[Result "0-1"]
[Round "01"]
[TimeControl "180+1"]
[Date "2022.05.25"]
[WhiteClock "0:00:10"]
[BlackClock "0:00:41"]

1. e4 {[%clk 0:03:00]}  e6 {[%clk 0:02:55]} 2. d4 {[%clk 0:02:59]}  d5 {[%clk 0:02:55]} 3. Nc3 {[%clk 0:03:00]}  Bb4 {[%clk 0:02:54]} 4. e5 {[%clk 0:03:00]}  c5 {[%clk 0:02:53]} 5. a3 {[%clk 0:03:00]}  Bxc3+ {[%clk 0:02:53]} 6. bxc3 {[%clk 0:03:01]}  Ne7 {[%clk 0:02:54]} 7. Qg4 {[%clk 0:03:00]}  O-O {[%clk 0:02:49]} 8. Bd3 {[%clk 0:02:58]}  f5 {[%clk 0:02:39]} 9. exf6 {[%clk 0:02:56]}  Rxf6 {[%clk 0:02:37]} 10. Bg5 {[%clk 0:02:54]}  e5 {[%clk 0:02:37]} 11. Qg3 {[%clk 0:02:47]}  Re6 {[%clk 0:02:30]} 12. Bf5 {[%clk 0:02:03]}  Nxf5 {[%clk 0:02:26]} 13. Bxd8 {[%clk 0:02:02]}  Nxg3 {[%clk 0:02:26]} 14. hxg3 {[%clk 0:01:55]}  exd4+ {[%clk 0:02:27]} 15. Kd2 {[%clk 0:01:53]}  Nc6 {[%clk 0:02:24]} 16. Bg5 {[%clk 0:01:33]}  dxc3+ {[%clk 0:02:17]} 17. Kxc3 {[%clk 0:01:28]}  Bd7 {[%clk 0:02:18]} 18. Nf3 {[%clk 0:01:24]}  Re2 {[%clk 0:02:17]} 19. Be3 {[%clk 0:01:06]}  d4+ {[%clk 0:02:17]} 20. Kd3 {[%clk 0:01:06]}  Rxc2 {[%clk 0:02:02]} 21. Kxc2 {[%clk 0:01:04]}  dxe3 {[%clk 0:02:03]} 22. fxe3 {[%clk 0:01:04]}  Bf5+ {[%clk 0:02:00]} 23. Kc3 {[%clk 0:01:04]}  Re8 {[%clk 0:01:55]} 24. Rhe1 {[%clk 0:01:02]}  b5 {[%clk 0:01:55]} 25. Rad1 {[%clk 0:01:01]}  b4+ {[%clk 0:01:40]} 26. axb4 {[%clk 0:01:00]}  cxb4+ {[%clk 0:01:33]} 27. Kb2 {[%clk 0:00:59]}  a5 {[%clk 0:01:30]} 28. Rd5 {[%clk 0:00:50]}  Be4 {[%clk 0:01:27]} 29. Rc5 {[%clk 0:00:46]}  a4 {[%clk 0:01:18]} 30. Rec1 {[%clk 0:00:45]}  h6 {[%clk 0:01:13]} 31. Rxc6 {[%clk 0:00:43]}  Bxc6 {[%clk 0:01:10]} 32. Rxc6 {[%clk 0:00:43]}  Rxe3 {[%clk 0:01:11]} 33. Rc8+ {[%clk 0:00:40]}  Kf7 {[%clk 0:01:08]} 34. Rb8 {[%clk 0:00:40]}  a3+ {[%clk 0:01:05]} 35. Ka2 {[%clk 0:00:37]}  Re2+ {[%clk 0:01:00]} 36. Kb3 {[%clk 0:00:36]}  Rb2+ {[%clk 0:00:57]} 37. Kc4 {[%clk 0:00:33]}  a2 {[%clk 0:00:57]} 38. Ne5+ {[%clk 0:00:33]}  Ke6 {[%clk 0:00:57]} 39. Re8+ {[%clk 0:00:27]}  Kf5 {[%clk 0:00:46]} 40. g4+ {[%clk 0:00:23]}  Kf4 {[%clk 0:00:45]} 41. Nd3+ {[%clk 0:00:21]}  Kxg4 {[%clk 0:00:44]} 42. Ra8 {[%clk 0:00:19]}  Rxg2 {[%clk 0:00:40]} 43. Nxb4 {[%clk 0:00:19]}  h5 {[%clk 0:00:39]} 44. Nxa2 {[%clk 0:00:18]}  h4 {[%clk 0:00:40]} 45. Nc3 {[%clk 0:00:18]}  h3 {[%clk 0:00:40]} 46. Rg8 {[%clk 0:00:18]}  g5 {[%clk 0:00:39]} 47. Ne4 {[%clk 0:00:17]}  Kf4 {[%clk 0:00:40]} 48. Nf6 {[%clk 0:00:17]}  h2 {[%clk 0:00:40]} 49. Nh5+ {[%clk 0:00:16]}  Kf3 {[%clk 0:00:39]} 50. Rf8+ {[%clk 0:00:16]}  Ke2 {[%clk 0:00:39]} 51. Re8+ {[%clk 0:00:16]}  Kd2 {[%clk 0:00:39]} 52. Rd8+ {[%clk 0:00:14]}  Kc2 {[%clk 0:00:40]} 53. Ra8 {[%clk 0:00:13]}  h1=Q {[%clk 0:00:40]} 54. Ra2+ {[%clk 0:00:13]}  Kb1 {[%clk 0:00:40]} 55. Rxg2 {[%clk 0:00:13]}  Qxg2 {[%clk 0:00:40]} 56. Kd4 {[%clk 0:00:12]}  Qf2+ {[%clk 0:00:39]} 57. Ke4 {[%clk 0:00:12]}  g4 {[%clk 0:00:40]} 58. Nf4 {[%clk 0:00:11]}  Qf3+ {[%clk 0:00:41]} 59. Kf5 {[%clk 0:00:11]}  g3 {[%clk 0:00:41]} 60. Kg5 {[%clk 0:00:10]}  g2 {[%clk 0:00:41]} 61. Nh3 {[%clk 0:00:10]}  Qxh3 {[%clk 0:00:41]} 0-1


[Site "https://www.chess.com"]

[Event "Titled Tuesday Blitz May 24 Early 2022"]
[White "Horak, Martin"]
[Black "Olafsson, Helgi"]
[WhiteFideId "367095"]
[BlackFideId "2300010"]
[WhiteElo "1997"]
[BlackElo "2463"]
[Result "1-0"]
[Round "01"]
[TimeControl "180+1"]
[Date "2022.05.25"]
[WhiteClock "0:00:45"]
[BlackClock "0:01:20"]

1. d4 {[%clk 0:02:59]}  Nf6 {[%clk 0:02:59]} 2. Nf3 {[%clk 0:02:57]}  e6 {[%clk 0:02:59]} 3. c4 {[%clk 0:02:56]}  b6 {[%clk 0:02:58]} 4. Nc3 {[%clk 0:02:55]}  Bb7 {[%clk 0:02:57]} 5. g3 {[%clk 0:02:56]}  Bb4 {[%clk 0:02:54]} 6. Qb3 {[%clk 0:02:49]}  c5 {[%clk 0:02:52]} 7. dxc5 {[%clk 0:02:47]}  bxc5 {[%clk 0:02:48]} 8. Bg2 {[%clk 0:02:46]}  Nc6 {[%clk 0:02:41]} 9. O-O {[%clk 0:02:45]}  Na5 {[%clk 0:02:39]} 10. Qa4 {[%clk 0:02:38]}  Bc6 {[%clk 0:02:28]} 11. Qc2 {[%clk 0:02:35]}  Nxc4 {[%clk 0:02:28]} 12. b3 {[%clk 0:02:19]}  Na3 {[%clk 0:02:19]} 13. Bxa3 {[%clk 0:02:08]}  Bxa3 {[%clk 0:02:17]} 14. Nb1 {[%clk 0:02:08]}  Qa5 {[%clk 0:02:03]} 15. Nxa3 {[%clk 0:02:06]}  Qxa3 {[%clk 0:02:03]} 16. Rac1 {[%clk 0:01:36]}  d6 {[%clk 0:01:59]} 17. Rfd1 {[%clk 0:01:36]}  Rd8 {[%clk 0:01:58]} 18. Nd2 {[%clk 0:01:21]}  Bxg2 {[%clk 0:01:55]} 19. Kxg2 {[%clk 0:01:22]}  Qa6 {[%clk 0:01:49]} 20. Nc4 {[%clk 0:01:18]}  O-O {[%clk 0:01:46]} 21. Rd3 {[%clk 0:01:12]}  d5 {[%clk 0:01:38]} 22. Nd2 {[%clk 0:01:12]}  Rc8 {[%clk 0:01:36]} 23. Rc3 {[%clk 0:01:12]}  Qxe2 {[%clk 0:01:35]} 24. Re3 {[%clk 0:01:04]}  Qb5 {[%clk 0:01:29]} 25. Rc3 {[%clk 0:01:04]}  Nd7 {[%clk 0:01:25]} 26. Nf3 {[%clk 0:00:59]}  Qb4 {[%clk 0:01:20]} 27. Ng5 {[%clk 0:00:46]}  h6 {[%clk 0:01:20]} 28. Qh7# {[%clk 0:00:45]} 1-0


[Site "https://www.chess.com"]

[Event "Titled Tuesday Blitz May 24 Early 2022"]
[White "Ibrahimli, Murad"]
[Black "Fernandez Barrera, Victor"]
[WhiteFideId "13410229"]
[BlackFideId "2261529"]
[WhiteElo "2109"]
[BlackElo "2189"]
[Result "1/2-1/2"]
[Round "01"]
[TimeControl "180+1"]
[Date "2022.05.24"]
[WhiteClock "0:00:23"]
[BlackClock "0:00:59"]

1. Nf3 {[%clk 0:03:00]}  Nf6 {[%clk 0:02:59]} 2. d4 {[%clk 0:03:00]}  e6 {[%clk 0:02:59]} 3. Bf4 {[%clk 0:03:00]}  d5 {[%clk 0:02:54]} 4. e3 {[%clk 0:03:00]}  Bd6 {[%clk 0:02:54]} 5. Nbd2 {[%clk 0:03:00]}  O-O {[%clk 0:02:54]} 6. Bd3 {[%clk 0:02:59]}  b6 {[%clk 0:02:53]} 7. Qe2 {[%clk 0:02:57]}  Bb7 {[%clk 0:02:53]} 8. Ne5 {[%clk 0:02:57]}  c5 {[%clk 0:02:51]} 9. c3 {[%clk 0:02:57]}  Nc6 {[%clk 0:02:51]} 10. Qf3 {[%clk 0:02:51]}  Ne7 {[%clk 0:02:47]} 11. Qh3 {[%clk 0:02:48]}  Ng6 {[%clk 0:02:45]} 12. Bg5 {[%clk 0:02:42]}  Be7 {[%clk 0:02:42]} 13. Bxf6 {[%clk 0:02:37]}  Bxf6 {[%clk 0:02:41]} 14. f4 {[%clk 0:02:38]}  a5 {[%clk 0:02:34]} 15. Ndf3 {[%clk 0:02:30]}  Ba6 {[%clk 0:02:32]} 16. Bxg6 {[%clk 0:02:22]}  hxg6 {[%clk 0:02:26]} 17. g4 {[%clk 0:02:23]}  cxd4 {[%clk 0:02:20]} 18. exd4 {[%clk 0:02:22]}  b5 {[%clk 0:02:11]} 19. g5 {[%clk 0:02:22]}  Bxe5 {[%clk 0:02:11]} 20. Nxe5 {[%clk 0:02:21]}  b4 {[%clk 0:02:09]} 21. Rg1 {[%clk 0:02:20]}  bxc3 {[%clk 0:02:07]} 22. bxc3 {[%clk 0:02:19]}  Qb6 {[%clk 0:01:59]} 23. Rg2 {[%clk 0:01:31]}  Rfc8 {[%clk 0:01:47]} 24. Qe3 {[%clk 0:01:06]}  Rab8 {[%clk 0:01:40]} 25. Rc2 {[%clk 0:01:02]}  Qb5 {[%clk 0:01:32]} 26. Kf2 {[%clk 0:01:01]}  Kf8 {[%clk 0:01:28]} 27. Kg3 {[%clk 0:01:00]}  Ke7 {[%clk 0:01:28]} 28. h4 {[%clk 0:00:57]}  Rc7 {[%clk 0:01:26]} 29. Qc1 {[%clk 0:00:52]}  Qa4 {[%clk 0:01:19]} 30. Rb1 {[%clk 0:00:48]}  Rxb1 {[%clk 0:01:18]} 31. Qxb1 {[%clk 0:00:49]}  Rb7 {[%clk 0:01:18]} 32. Rb2 {[%clk 0:00:49]}  Rxb2 {[%clk 0:01:07]} 33. Qxb2 {[%clk 0:00:50]}  Qd1 {[%clk 0:01:08]} 34. Nf3 {[%clk 0:00:36]}  Be2 {[%clk 0:00:59]} 35. Qb7+ {[%clk 0:00:36]}  Ke8 {[%clk 0:01:00]} 36. Qc8+ {[%clk 0:00:36]}  Ke7 {[%clk 0:01:00]} 37. Qc7+ {[%clk 0:00:36]}  Ke8 {[%clk 0:01:01]} 38. Qb8+ {[%clk 0:00:25]}  Ke7 {[%clk 0:01:00]} 39. Qa7+ {[%clk 0:00:25]}  Ke8 {[%clk 0:00:59]} 40. Qa8+ {[%clk 0:00:23]}  Ke7 {[%clk 0:00:58]} 41. Qa7+ {[%clk 0:00:22]}  Ke8 {[%clk 0:00:59]} 42. Qa8+ {[%clk 0:00:23]}  Ke7 {[%clk 0:00:59]} 43. Qa7+ {[%clk 0:00:23]} 1/2-1/2


[Site "https://www.chess.com"]

[Event "Titled Tuesday Blitz May 24 Early 2022"]
[White "Ingebretsen, Jens E"]
[Black "Keymer, Vincent"]
[WhiteFideId "1522965"]
[BlackFideId "12940690"]
[WhiteElo "2036"]
[BlackElo "2548"]
[Result "0-1"]
[Round "01"]
[TimeControl "180+1"]
[Date "2022.05.24"]
[WhiteClock "0:00:12"]
[BlackClock "0:01:13"]

1. c4 {[%clk 0:02:50]}  Nf6 {[%clk 0:02:59]} 2. Nf3 {[%clk 0:02:50]}  e6 {[%clk 0:02:58]} 3. Nc3 {[%clk 0:02:51]}  d5 {[%clk 0:02:58]} 4. cxd5 {[%clk 0:02:50]}  exd5 {[%clk 0:02:55]} 5. d4 {[%clk 0:02:50]}  c6 {[%clk 0:02:54]} 6. Bg5 {[%clk 0:02:48]}  Be7 {[%clk 0:02:54]} 7. e3 {[%clk 0:02:48]}  Bf5 {[%clk 0:02:53]} 8. Bd3 {[%clk 0:02:47]}  Bxd3 {[%clk 0:02:53]} 9. Qxd3 {[%clk 0:02:48]}  Nbd7 {[%clk 0:02:51]} 10. O-O {[%clk 0:02:48]}  O-O {[%clk 0:02:51]} 11. Rab1 {[%clk 0:02:47]}  a5 {[%clk 0:02:46]} 12. Rfe1 {[%clk 0:02:27]}  Re8 {[%clk 0:02:42]} 13. Rbd1 {[%clk 0:02:16]}  h6 {[%clk 0:02:32]} 14. Bh4 {[%clk 0:02:15]}  a4 {[%clk 0:02:27]} 15. a3 {[%clk 0:02:13]}  Qa5 {[%clk 0:02:15]} 16. Ne5 {[%clk 0:02:06]}  Nxe5 {[%clk 0:02:03]} 17. dxe5 {[%clk 0:02:07]}  Nd7 {[%clk 0:02:03]} 18. Bg3 {[%clk 0:02:01]}  Nb6 {[%clk 0:01:57]} 19. Qf5 {[%clk 0:01:32]}  Nc4 {[%clk 0:01:50]} 20. e6 {[%clk 0:01:05]}  fxe6 {[%clk 0:01:47]} 21. Qxe6+ {[%clk 0:01:06]}  Kh8 {[%clk 0:01:47]} 22. Bf4 {[%clk 0:00:40]}  Bf6 {[%clk 0:01:31]} 23. Qh3 {[%clk 0:00:37]}  Nxb2 {[%clk 0:01:23]} 24. Bxh6 {[%clk 0:00:31]}  Qxc3 {[%clk 0:01:14]} 25. Rc1 {[%clk 0:00:25]}  Qd3 {[%clk 0:01:13]} 26. Bf4+ {[%clk 0:00:11]}  Qh7 {[%clk 0:01:13]} 27. Qf3 {[%clk 0:00:12]}  Nd3 {[%clk 0:01:13]} 0-1


[Site "https://www.chess.com"]

[Event "Titled Tuesday Blitz May 24 Early 2022"]
[White "Jeet, Jain"]
[Black "Lauridsen, Jesper Morch"]
[WhiteFideId "5073022"]
[BlackFideId "1401890"]
[WhiteElo "2028"]
[BlackElo "2241"]
[Result "1-0"]
[Round "01"]
[TimeControl "180+1"]
[Date "2022.05.25"]
[WhiteClock "0:00:59"]
[BlackClock "0:00:06"]

1. d4 {[%clk 0:02:57]}  g6 {[%clk 0:02:59]} 2. Nf3 {[%clk 0:02:57]}  Bg7 {[%clk 0:02:59]} 3. e3 {[%clk 0:02:57]}  d6 {[%clk 0:02:58]} 4. Be2 {[%clk 0:02:57]}  Nd7 {[%clk 0:02:55]} 5. O-O {[%clk 0:02:58]}  e5 {[%clk 0:02:52]} 6. c4 {[%clk 0:02:57]}  Ngf6 {[%clk 0:02:43]} 7. Nc3 {[%clk 0:02:57]}  O-O {[%clk 0:02:40]} 8. b3 {[%clk 0:02:55]}  e4 {[%clk 0:02:17]} 9. Nd2 {[%clk 0:02:54]}  Re8 {[%clk 0:02:17]} 10. Qc2 {[%clk 0:02:55]}  Qe7 {[%clk 0:02:15]} 11. Bb2 {[%clk 0:02:52]}  c6 {[%clk 0:02:05]} 12. Rfe1 {[%clk 0:02:52]}  Nf8 {[%clk 0:02:03]} 13. f3 {[%clk 0:02:52]}  Bf5 {[%clk 0:01:52]} 14. fxe4 {[%clk 0:02:52]}  Nxe4 {[%clk 0:01:52]} 15. Ndxe4 {[%clk 0:02:51]}  Bxe4 {[%clk 0:01:52]} 16. Nxe4 {[%clk 0:02:51]}  Qxe4 {[%clk 0:01:51]} 17. Bd3 {[%clk 0:02:52]}  Qg4 {[%clk 0:01:42]} 18. e4 {[%clk 0:02:48]}  Ne6 {[%clk 0:01:37]} 19. d5 {[%clk 0:02:38]}  Bxb2 {[%clk 0:01:28]} 20. Qxb2 {[%clk 0:02:39]}  Nf4 {[%clk 0:01:28]} 21. Bf1 {[%clk 0:02:39]}  Re5 {[%clk 0:01:14]} 22. Kh1 {[%clk 0:02:32]}  Rae8 {[%clk 0:01:10]} 23. dxc6 {[%clk 0:02:31]}  bxc6 {[%clk 0:01:09]} 24. Qd4 {[%clk 0:02:30]}  d5 {[%clk 0:00:59]} 25. cxd5 {[%clk 0:02:29]}  cxd5 {[%clk 0:00:58]} 26. Qxa7 {[%clk 0:02:21]}  dxe4 {[%clk 0:00:51]} 27. a4 {[%clk 0:02:14]}  e3 {[%clk 0:00:49]} 28. g3 {[%clk 0:01:48]}  Qf3+ {[%clk 0:00:36]} 29. Kg1 {[%clk 0:01:48]}  Qf2+ {[%clk 0:00:33]} 30. Kh1 {[%clk 0:01:47]}  Rh5 {[%clk 0:00:29]} 31. h3 {[%clk 0:01:19]}  Qf3+ {[%clk 0:00:29]} 32. Kh2 {[%clk 0:01:16]}  e2 {[%clk 0:00:28]} 33. gxf4 {[%clk 0:01:01]}  exf1=N+ {[%clk 0:00:14]} 34. Kg1 {[%clk 0:01:00]}  Qg3+ {[%clk 0:00:11]} 35. Kxf1 {[%clk 0:01:00]}  Qxf4+ {[%clk 0:00:10]} 36. Qf2 {[%clk 0:01:00]}  Qg5 {[%clk 0:00:06]} 37. Rxe8+ {[%clk 0:00:59]} 1-0


[Site "https://www.chess.com"]

[Event "Titled Tuesday Blitz May 24 Early 2022"]
[White "Kejzar, Petra"]
[Black "Richter, Nils"]
[WhiteFideId "14610213"]
[BlackFideId "12990809"]
[WhiteElo "2004"]
[BlackElo "2243"]
[Result "1/2-1/2"]
[Round "01"]
[TimeControl "180+1"]
[Date "2022.05.25"]
[WhiteClock "0:00:51"]
[BlackClock "0:01:13"]

1. c4 {[%clk 0:02:56]}  e6 {[%clk 0:02:59]} 2. g3 {[%clk 0:02:54]}  f5 {[%clk 0:02:58]} 3. Bg2 {[%clk 0:02:55]}  Nf6 {[%clk 0:02:58]} 4. Nc3 {[%clk 0:02:54]}  Be7 {[%clk 0:02:56]} 5. e4 {[%clk 0:02:53]}  fxe4 {[%clk 0:02:55]} 6. Nxe4 {[%clk 0:02:54]}  O-O {[%clk 0:02:55]} 7. Ne2 {[%clk 0:02:53]}  Nc6 {[%clk 0:02:54]} 8. O-O {[%clk 0:02:52]}  e5 {[%clk 0:02:53]} 9. d4 {[%clk 0:02:46]}  d6 {[%clk 0:02:49]} 10. d5 {[%clk 0:02:42]}  Nb8 {[%clk 0:02:48]} 11. f4 {[%clk 0:02:29]}  Nxe4 {[%clk 0:02:39]} 12. Bxe4 {[%clk 0:02:27]}  Bh3 {[%clk 0:02:40]} 13. Rf2 {[%clk 0:02:23]}  Nd7 {[%clk 0:02:37]} 14. Qc2 {[%clk 0:02:06]}  Nf6 {[%clk 0:02:28]} 15. fxe5 {[%clk 0:01:59]}  Nxe4 {[%clk 0:02:26]} 16. Qxe4 {[%clk 0:01:52]}  Rxf2 {[%clk 0:02:22]} 17. Kxf2 {[%clk 0:01:53]}  dxe5 {[%clk 0:02:17]} 18. Qxe5 {[%clk 0:01:45]}  Bc5+ {[%clk 0:02:13]} 19. Be3 {[%clk 0:01:44]}  Qf8+ {[%clk 0:02:12]} 20. Kg1 {[%clk 0:01:41]}  Re8 {[%clk 0:02:07]} 21. Bxc5 {[%clk 0:01:40]}  Qxc5+ {[%clk 0:02:07]} 22. Qd4 {[%clk 0:01:40]}  Qd6 {[%clk 0:01:36]} 23. Nf4 {[%clk 0:01:34]}  Bf5 {[%clk 0:01:35]} 24. Rf1 {[%clk 0:01:31]}  Re4 {[%clk 0:01:33]} 25. Qf2 {[%clk 0:01:28]}  h6 {[%clk 0:01:23]} 26. c5 {[%clk 0:01:25]}  Qe5 {[%clk 0:01:19]} 27. Nd3 {[%clk 0:01:16]}  Qxd5 {[%clk 0:01:17]} 28. Qxf5 {[%clk 0:01:13]}  Qxd3 {[%clk 0:01:16]} 29. Qf8+ {[%clk 0:01:12]}  Kh7 {[%clk 0:01:16]} 30. Qf5+ {[%clk 0:01:12]}  Kg8 {[%clk 0:01:13]} 31. Qf8+ {[%clk 0:00:52]}  Kh7 {[%clk 0:01:13]} 32. Qf5+ {[%clk 0:00:51]}  Kg8 {[%clk 0:01:13]} 1/2-1/2


[Site "https://www.chess.com"]

[Event "Titled Tuesday Blitz May 24 Early 2022"]
[White "Khoroshev, Nikita"]
[Black "Aakanksha Hagawane"]
[WhiteFideId "14200287"]
[BlackFideId "25014510"]
[WhiteElo "2354"]
[BlackElo "1971"]
[Result "1-0"]
[Round "01"]
[TimeControl "180+1"]
[Date "2022.05.25"]
[WhiteClock "0:01:57"]
[BlackClock "0:00:42"]

1. e4 {[%clk 0:02:57]}  e5 {[%clk 0:02:58]} 2. Nf3 {[%clk 0:02:57]}  Nc6 {[%clk 0:02:57]} 3. Bb5 {[%clk 0:02:57]}  a6 {[%clk 0:02:57]} 4. Ba4 {[%clk 0:02:56]}  Nf6 {[%clk 0:02:57]} 5. O-O {[%clk 0:02:57]}  Nxe4 {[%clk 0:02:54]} 6. d4 {[%clk 0:02:56]}  b5 {[%clk 0:02:54]} 7. Bb3 {[%clk 0:02:57]}  d5 {[%clk 0:02:54]} 8. dxe5 {[%clk 0:02:57]}  Be6 {[%clk 0:02:55]} 9. a4 {[%clk 0:02:58]}  b4 {[%clk 0:02:48]} 10. a5 {[%clk 0:02:58]}  Nc5 {[%clk 0:02:45]} 11. Be3 {[%clk 0:02:58]}  Nxb3 {[%clk 0:02:35]} 12. cxb3 {[%clk 0:02:59]}  Be7 {[%clk 0:02:36]} 13. Qc2 {[%clk 0:02:59]}  Nb8 {[%clk 0:02:33]} 14. Rc1 {[%clk 0:02:59]}  c6 {[%clk 0:02:29]} 15. Nd4 {[%clk 0:02:59]}  Bd7 {[%clk 0:02:27]} 16. Nf5 {[%clk 0:03:00]}  Bxf5 {[%clk 0:02:19]} 17. Qxf5 {[%clk 0:03:01]}  O-O {[%clk 0:02:14]} 18. Nd2 {[%clk 0:03:00]}  d4 {[%clk 0:02:11]} 19. Bf4 {[%clk 0:03:00]}  c5 {[%clk 0:02:09]} 20. Ne4 {[%clk 0:02:57]}  Qd5 {[%clk 0:02:06]} 21. Bg5 {[%clk 0:02:52]}  g6 {[%clk 0:01:48]} 22. Qf4 {[%clk 0:02:46]}  Bxg5 {[%clk 0:01:45]} 23. Nxg5 {[%clk 0:02:47]}  Nd7 {[%clk 0:01:44]} 24. Qh4 {[%clk 0:02:45]}  h5 {[%clk 0:01:43]} 25. f4 {[%clk 0:02:44]}  f6 {[%clk 0:01:33]} 26. Nf3 {[%clk 0:02:38]}  fxe5 {[%clk 0:01:31]} 27. Qg5 {[%clk 0:02:39]}  Kg7 {[%clk 0:01:30]} 28. fxe5 {[%clk 0:02:34]}  Rf5 {[%clk 0:01:23]} 29. Qe7+ {[%clk 0:02:30]}  Qf7 {[%clk 0:01:23]} 30. Qd6 {[%clk 0:02:17]}  Re8 {[%clk 0:01:15]} 31. Qxa6 {[%clk 0:02:17]}  Nxe5 {[%clk 0:01:13]} 32. Nxe5 {[%clk 0:02:16]}  Rexe5 {[%clk 0:01:11]} 33. Rf1 {[%clk 0:02:13]}  Qd5 {[%clk 0:01:07]} 34. Rxf5 {[%clk 0:02:09]}  Rxf5 {[%clk 0:01:07]} 35. Qc4 {[%clk 0:02:09]}  Qe4 {[%clk 0:01:01]} 36. a6 {[%clk 0:02:07]}  Rg5 {[%clk 0:00:58]} 37. Qf1 {[%clk 0:02:03]}  Rf5 {[%clk 0:00:55]} 38. Qb5 {[%clk 0:01:57]}  Rg5 {[%clk 0:00:45]} 39. Qb7+ {[%clk 0:01:56]}  Qxb7 {[%clk 0:00:42]} 40. axb7 {[%clk 0:01:57]} 1-0


[Site "https://www.chess.com"]